{"text_format":"2","workbook":"xlsx","n_sheets":9,"sheets":["veiculo","MEM","DETA MATE","MAT DE MONT","FORNECIMENTO","MDO","CPU-MONTAGEM","CPU-AUTOMAÇÃO","poo"],"not_rendered":{"charts":0,"images":2,"macros":0,"external_links":0,"defined_names":9,"comments":0,"pivot_tables":0},"unopened":[],"bounds":{"document_bytes":16777216,"sheet_cells":100000,"run_cost":"one","rows_first":2000,"rows_last":500,"rows_between":2000,"halvings":0,"cell_chars":16384,"cell_head_chars":4096},"cells_cut":0,"cells_raw":0,"read":"whole","date_system":"1900"}

{"sheet":"veiculo","index":0,"n_rows":59,"n_cols":3,"rows_kept":59,"cut":false,"hidden":false,"merged":[[2,1,2,3],[3,1,3,3]]}
[]
[]
[null," "]
[null,"CODEVASF"]
[null,null," "]
[null,null," "]
[null,null,"Hilux CD SR 3.0 diesel 4x4 163cv"]
[null,null," "]
[null,"A","Depreciação mensal do equipamento"]
[null,"A1","Preço de Aquisição "]
[null,"A2","Tempo previsto de vida útil (meses)"]
[null,"A3","Previsão de recup. Na venda do bem usado"]
[null,"A4","Custo mensal [A1-(A3xA1)]/A2"]
[]
[null,"B","Juros pelo Capital empregado"]
[null,"B1","Taxa mensal de Juros "]
[null,"B2","Juros s/depreciação/aluguel (B1xA4)"]
[]
[null,"C","Conservação e manutenção "]
[null,"C1","Taxa de gastos s/a deprec. Inc. seguros (%)"]
[null,"C2","Incidência mensal (C1xA4)"]
[null," "," "]
[null,"D","Combustível"]
[null,"D1","Média mensal de quilômetro por veículo"]
[null,"D2","Preço do litro de combustível"]
[null,"D3","Quilômetros rodados com um litro combustivel"]
[null,"D4","Combustivel    (D1/D3)*D2"]
[]
[null,"E","Lubrificantes"]
[null,"E1","Quilometragem do Contrato "]
[null,"E2","Franquia por troca de óleo (km)"]
[null,"E3","Preço do litro de óleo"]
[null,"E4","Quantidade de litros de óleo por troca"]
[null,"E5","Quantidade de dias do Contrato"]
[null,"E6","Lubrificantes  E = (E1*E3*E4*30)/E2*E5"]
[]
[null,"F","Pneus"]
[null,"F1","Quilometragem do Contrato "]
[null,"F2","Vida do Pneu em quilômetros"]
[null,"F3","Quantidade de pneus"]
[null,"F4","Preço do Pneu"]
[null,"F5","Quantidade de dias do contrato "]
[null,"F6","Pneus = (F1*F3*F4*30)/(F2*F5)"]
[]
[null,"G","Motorista"]
[null,"G1","Salário com encargos sociais"]
[]
[null,"H","Custo Mensal"]
[null,null,"Sem Motorista"]
[]
[]
[null,"I","Custo Direto p/ km Rodado"]
[null,null,"Sem Motorista"]
[]
[]
[null,"J","Preço cobrado pela empresa "]
[null,"J1"]
[null,"J2"]
[null,null," "]

{"sheet":"MEM","index":1,"n_rows":22,"n_cols":11,"rows_kept":22,"cut":false,"hidden":false,"merged":[[2,10,3,10],[0,6,0,8],[1,6,1,8],[2,4,2,8],[2,1,3,1],[2,2,3,2],[2,3,3,3],[2,9,3,9]]}
["EWQUIPAMENTOS COMISSIONAMENTO"]
[{"$nulls":6},"EMPRESA"]
[null,"DESCRIÇÃO","UNID","QUANT","PREÇO UNITÁRIO",{"$nulls":4},"MÉDIA","MEDIANA"]
[{"$nulls":4},"ADOTADO","TOTAL","A","B","C"]
["2.1","Medidor Eletromagnético de vazão","conj.",4,{"$f":"MIN(J5:K5)","v":12934.873333333331},{"$f":"ROUND(D5*E5,2)","v":51739.49},13399.16,13552,11853.46,{"$f":"AVERAGE(G5:I5)","v":12934.873333333331},{"$f":"MEDIAN(G5:I5)","v":13399.16}]
[]
["2.2","Transmissor de pressão","conj.",4,{"$f":"MIN(J7:K7)","v":2160.89},{"$f":"ROUND(D7*E7,2)","v":8643.56},2191.27,2477.15,1814.25,{"$f":"AVERAGE(G7:I7)","v":2160.89},{"$f":"MEDIAN(G7:I7)","v":2191.27}]
[]
["2.3","Relé microprocessado digital","conj.",8,{"$f":"MIN(J9:K9)","v":1285.92},{"$f":"ROUND(D9*E9,2)","v":10287.36},1285.92,1545.12,1230.5899999999999,{"$f":"AVERAGE(G9:I9)","v":1353.8766666666668},{"$f":"MEDIAN(G9:I9)","v":1285.92}]
[]
["2.4","Transmissor de temperatura PT100","conj.",12,{"$f":"MIN(J11:K11)","v":647.08000000000004},{"$f":"ROUND(D11*E11,2)","v":7764.96},732.61,715.29,493.34,{"$f":"AVERAGE(G11:I11)","v":647.08000000000004},{"$f":"MEDIAN(G11:I11)","v":715.29}]
[]
["2.5","Medidor de vibração","conj.",8,{"$f":"MIN(J13:K13)","v":7827.36},{"$f":"ROUND(D13*E13,2)","v":62618.879999999997},7827.36,9125.1200000000008,6937.02,{"$f":"AVERAGE(G13:I13)","v":7963.166666666667},{"$f":"MEDIAN(G13:I13)","v":7827.36}]
[]
["2.6","Transmissor de nível","conj.",4,{"$f":"MIN(J15:K15)","v":7317.96},{"$f":"ROUND(D15*E15,2)","v":29271.84},7833.33,7628.89,6491.66,{"$f":"AVERAGE(G15:I15)","v":7317.96},{"$f":"MEDIAN(G15:I15)","v":7628.89}]
[]
[null,"TOTAL",null,null,{"$f":"SUM(E5:E15)","v":32174.083333333332}]
[]
["EMPRESA"]
["A","SCHEIDER"]
["B","SCAI AUTOMAÇÃO"]
["C","VECTOR"]

{"sheet":"DETA MATE","index":2,"n_rows":14,"n_cols":6,"rows_kept":14,"cut":false,"hidden":false,"merged":[[11,1,11,4],[12,1,12,3],[13,1,13,4],[1,0,1,3],[2,4,2,5],[2,0,3,0],[2,1,3,1],[2,2,3,2],[2,3,3,3]]}
[]
["2.7"]
["ITEM","DESCRIÇÃO","UNID","QUANT","PREÇO(R$)"]
[{"$nulls":4},"UNITÁRIO","TOTAL"]
[1,"Cabo Flexível isol. PVC – 0,6/1kV 3 x 1,5 mm²","m",3760,null,{"$f":"ROUND(D5*E5,2)","v":0}]
[2,"Cabo para instrumentação, isolação 300 V, com blindagem eletrostática, conforme NBR 6251, 2x1 mm² - mod: 210 MA FR","m",3760,null,{"$f":"ROUND(D6*E6,2)","v":0}]
[3,"Eletroduto galvanizado a fogo conforme NBR 5597, rosca BSP, peça = 3m com luva Ø 2”","pc",400,null,0]
[4,"Condulete em alumínio-silicio, pintura eletrostática em epóxi cinza tipo T Ø2”","pc",24,null,0]
[5,"Eletroduto metálico flexível, revestido em PVC preto Ø 2”","m",312,null,0]
[6,"Conector macho giratório zincado, rosca BSP Ø2”","pc",88,null,0]
[7,"Conector macho zincado, BSP Ø2”","pc",88,null,0]
[null,"SUB -TOTAL",null,null,null,{"$f":"SUM(F5:F11)","v":0}]
[null,"BDI",null,null,0.15759999999999999,{"$f":"ROUND(E13*F12,2)","v":0}]
[null,"TOTAL",null,null,null,{"$f":"F12+F13","v":0}]

{"sheet":"MAT DE MONT","index":3,"n_rows":14,"n_cols":14,"rows_kept":14,"cut":false,"hidden":false,"merged":[[1,12,2,12],[1,5,1,6],[1,13,2,13],[7,0,7,3],[7,5,7,6],[7,11,8,11],[7,12,8,12],[7,13,8,13],[1,0,1,3],[1,11,2,11]]}
[]
["JAÍBA-MG",null,null,null,"ADOTADO","SINAPI",null,"UNIÃO","TME","REIPLAS","EUROCABOS","MÉDIA","MEDIANA","APROV."]
["ITEM","DESCRIÇÃO","UNID","QUANT.","valor unid.","código","valor unid.","valor unid.","valor unid.","valor unid.","valor unid."]
[1,"Cabo Flexível isol. PVC – 06/1kV 3 x 1,5mm²","m",3760,{"$f":"N4","v":1.46},"não tem",null,1.4,1.52,1.4,2.21,{"$f":"IF(H4<>0,AVERAGE(K4,J4,I4,H4),\"\")","v":1.6324999999999998},{"$f":"IF(H4<>0,MEDIAN(K4,H4,I4,J4),\"\")","v":1.46},{"$f":"IF((G4+H4)<>0,MIN(M4,L4,G4),\"\")","v":1.46}]
[2,"Cabo para instrumentação, isolação 300V, com blindagem eletrostática, conforme NBR 6251, 2 x 1 mm² - mod: 210 MA FR","m",3760,{"$f":"N5","v":1.33955},"não tem",null,1.3,1.66,0.99819999999999998,1.4,{"$f":"IF(H5<>0,AVERAGE(K5,J5,I5,H5),\"\")","v":1.33955},{"$f":"IF(H5<>0,MEDIAN(K5,H5,I5,J5),\"\")","v":1.35},{"$f":"IF((G5+H5)<>0,MIN(M5,L5,G5),\"\")","v":1.33955}]
[]
[]
["JAÍBA",null,null,null,"ADOTADO","SINAPI-MG / DEZ-11",null,"UNIÃO","TME",3,4,"MÉDIA","MEDIANA","APROV."]
["ITEM","DESCRIÇÃO","UNID","QUANT","valor unid.","código","valor unid.","valor unid.","valor unid.","valor unid.","valor unid."]
[3,"Eletroduto galvanizado a fogo conforme NBR 5597, rosca BSP, peça = 3m com luva Ø 2”","pc",400,{"$f":"N10","v":42.9},null,null,42.9,85,null,null,{"$f":"IF(H10<>0,AVERAGE(K10,J10,I10,H10),\"\")","v":63.95},{"$f":"IF(H10<>0,MEDIAN(H10,I10,J10,K10),\"\")","v":63.95},42.9]
[4,"Condulete em alumínio-silicio, pintura eletrostática em epóxi cinza tipo T Ø2”","pc",24,{"$f":"N11","v":20.7},2577,25.97,24.9,16.5,null,null,{"$f":"IF(H11<>0,AVERAGE(K11,J11,I11,H11),\"\")","v":20.7},{"$f":"IF(H11<>0,MEDIAN(H11,I11,J11,K11),\"\")","v":20.7},{"$f":"IF((G11+H11)<>0,MIN(M11,L11,G11),\"\")","v":20.7}]
[5,"Eletroduto metálico flexível, revestido em PVC preto Ø 2”","m",312,{"$f":"N12","v":10.220000000000001},2503,13.77,null,10.220000000000001,null,null,{"$f":"AVERAGE(K12,J12,I12,H12)","v":10.220000000000001},{"$f":"MEDIAN(H12,I12,J12,K12)","v":10.220000000000001},{"$f":"IF((G12+H12)<>0,MIN(M12,L12,G12),\"\")","v":10.220000000000001}]
[6,"Conector macho giratório zincado, rosca BSP Ø2”","pc",88,{"$f":"N13","v":21.16},null,null,44.9,21.16,null,null,{"$f":"IF(H13<>0,AVERAGE(K13,J13,I13,H13),\"\")","v":33.03},{"$f":"IF(H13<>0,MEDIAN(H13,I13,J13,K13),\"\")","v":33.03},21.16]
[7,"Conector macho giratório zincado, BSP Ø2”","pc",88,{"$f":"N14","v":19.13},null,null,42.75,19.13,null,null,{"$f":"IF(H14<>0,AVERAGE(K14,J14,I14,H14),\"\")","v":30.939999999999998},{"$f":"IF(H14<>0,MEDIAN(H14,I14,J14,K14),\"\")","v":30.939999999999998},19.13]

{"sheet":"FORNECIMENTO","index":4,"n_rows":393,"n_cols":8,"rows_kept":393,"cut":false,"hidden":false,"merged":[[13,3,13,4],[13,5,13,6],[46,5,46,6],[50,3,50,6],[4,0,4,7],[8,1,8,2],[9,2,11,6],[9,7,11,7],[79,3,79,4],[79,5,79,6],[113,5,113,6],[117,3,117,6],[70,0,70,7],[74,1,74,2],[75,2,77,6],[75,7,77,7],[145,3,145,4],[145,5,145,6],[179,5,179,6],[183,3,183,6],[136,0,136,7],[140,1,140,2],[141,2,143,6],[141,7,143,7],[211,3,211,4],[211,5,211,6],[245,5,245,6],[249,3,249,6],[202,0,202,7],[206,1,206,2],[207,2,209,6],[207,7,209,7],[277,3,277,4],[277,5,277,6],[311,5,311,6],[315,3,315,6],[268,0,268,7],[272,1,272,2],[273,2,275,6],[273,7,275,7],[343,3,343,4],[343,5,343,6],[377,5,377,6],[381,3,381,6],[334,0,334,7],[338,1,338,2],[339,2,341,6],[339,7,341,7]]}
[]
[]
[]
[]
["COMPOSIÇÃO DE PREÇOS UNITÁRIOS"]
[]
[]
[]
["CÓDIGO:","SERVIÇO:",{"$nulls":5},"UNID."]
["2.1",null,{"$f":"poo!B43","v":"Medidor Eletromagnético de vazão"},{"$nulls":4},{"$f":"poo!C43","v":"conj."}]
[]
[]
[]
["EQUIPAMENTO","MOD.","QUANT.","UTILIZAÇÃO",null,"CUSTO HORÁRIO",null,"PARCIAL"]
[null,null,null,"PROD.","IMPROD.","PROD.","IMPROD."]
[{"$nulls":7},{"$f":"ROUND(C16*D16*F16,2)+ROUND(C16*E16*G16,2)","v":0}]
[{"$nulls":7},{"$f":"ROUND(C17*D17*F17,2)+ROUND(C17*E17*G17,2)","v":0}]
[]
[]
[]
[]
[]
[]
[{"$nulls":7},{"$f":"ROUND(C24*D24*F24,2)+ROUND(C24*E24*G24,2)","v":0}]
[{"$nulls":6},"(A)",{"$f":"SUM(H16:H24)","v":0}]
[]
["MÃO DE OBRA SUPLEMENTAR",{"$nulls":4},"QUANT.","SALÁRIO","PARCIAL"]
[{"$nulls":6},"HORA"]
[{"$nulls":7},{"$f":"ROUND(F29*G29,2)","v":0}]
[{"$nulls":7},{"$f":"ROUND(F30*G30,2)","v":0}]
[{"$nulls":7},{"$f":"ROUND(F31*G31,2)","v":0}]
[{"$nulls":7},{"$f":"ROUND(F32*G32,2)","v":0}]
[]
[{"$nulls":7},{"$f":"SUM(H29:H33)","v":0}]
[{"$nulls":5},"ENCARGOS SOCIAIS"]
[{"$nulls":5},"TOTAL","(B)",{"$f":"ROUND(H34*(1+H35),2)","v":0}]
[]
["MATERIAIS",null,null,null,"QUANT.","UNID.","CUSTO","PARCIAL"]
[{"$nulls":6},"UNITÁRIO"]
["MEDIDOR ELETROMAGNÉTICO DE VAZÃO",null,null,null,1,"CJ",null,{"$f":"ROUND(E40*G40,2)","v":0}]
[{"$nulls":7},{"$f":"ROUND(E41*G41,2)","v":0}]
[{"$nulls":7},{"$f":"ROUND(E42*G42,2)","v":0}]
[{"$nulls":7},{"$f":"ROUND(E43*G43,2)","v":0}]
[]
[{"$nulls":6},"(C)",{"$f":"SUM(H40:H44)","v":0}]
[]
[{"$nulls":5},"            (A)+(B)+(C) = (D)",null,{"$f":"H25+H36+H45","v":0}]
[]
["PRODUÇÃO DA EQUIPE",1,"(E)"]
[{"$nulls":4},"          CUSTO UNITÁRIO"]
[null,null,null,"          SEM TRANSPORTE (D)/(E) = (F)",null,null,null,{"$f":"H47/B49","v":0}]
[]
["TRANSPORTE",null,null,"DMT","QUANT.","UNID.","CUSTO","PARCIAL"]
[{"$nulls":6},"UNITÁRIO"]
[]
[]
[]
[{"$nulls":6},"(G)"]
[]
["CUSTO DIRETO",{"$nulls":5},"(F)+(G)",{"$f":"H51+H58","v":0}]
["BDI",{"$nulls":5},0.15759999999999999,{"$f":"G61*H60","v":0}]
["PREÇO UNITÁRIO",{"$nulls":6},{"$f":"ROUND(H60+H61,2)","v":0}]
{"$rows_empty":8}
["COMPOSIÇÃO DE PREÇOS UNITÁRIOS"]
[]
[]
[]
["CÓDIGO:","SERVIÇO:",{"$nulls":5},"UNID."]
["2.2",null,{"$f":"poo!B45","v":"Transmissor de pressão"},{"$nulls":4},{"$f":"poo!C45","v":"conj."}]
[]
[]
[]
["EQUIPAMENTO","MOD.","QUANT.","UTILIZAÇÃO",null,"CUSTO HORÁRIO",null,"PARCIAL"]
[null,null,null,"PROD.","IMPROD.","PROD.","IMPROD."]
[{"$nulls":7},{"$f":"ROUND(C82*D82*F82,2)+ROUND(C82*E82*G82,2)","v":0}]
[{"$nulls":7},{"$f":"ROUND(C83*D83*F83,2)+ROUND(C83*E83*G83,2)","v":0}]
[]
[]
[]
[]
[]
[]
[{"$nulls":7},{"$f":"ROUND(C90*D90*F90,2)+ROUND(C90*E90*G90,2)","v":0}]
[{"$nulls":6},"(A)",{"$f":"SUM(H82:H90)","v":0}]
[]
["MÃO DE OBRA SUPLEMENTAR",{"$nulls":4},"QUANT.","SALÁRIO","PARCIAL"]
[{"$nulls":6},"HORA"]
[{"$nulls":7},{"$f":"ROUND(F95*G95,2)","v":0}]
[{"$nulls":7},{"$f":"ROUND(F96*G96,2)","v":0}]
[{"$nulls":7},{"$f":"ROUND(F97*G97,2)","v":0}]
[{"$nulls":7},{"$f":"ROUND(F98*G98,2)","v":0}]
[]
[{"$nulls":7},{"$f":"SUM(H95:H99)","v":0}]
[{"$nulls":5},"ENCARGOS SOCIAIS"]
[{"$nulls":5},"TOTAL","(B)",{"$f":"ROUND(H100*(1+H101),2)","v":0}]
[]
["MATERIAIS",null,null,null,"QUANT.","UNID.","CUSTO","PARCIAL"]
[{"$nulls":6},"UNITÁRIO"]
["TRANSMISSOR DE PRESSÃO",null,null,null,1,"CJ",null,{"$f":"ROUND(E106*G106,2)","v":0}]
[{"$nulls":7},0]
[{"$nulls":7},0]
[{"$nulls":7},0]
[{"$nulls":7},0]
[{"$nulls":7},0]
[{"$nulls":6},"(C)",{"$f":"SUM(H106:H111)","v":0}]
[]
[{"$nulls":5},"            (A)+(B)+(C) = (D)",null,{"$f":"H91+H102+H112","v":0}]
[]
["PRODUÇÃO DA EQUIPE",1,"(E)"]
[{"$nulls":4},"          CUSTO UNITÁRIO"]
[null,null,null,"          SEM TRANSPORTE (D)/(E) = (F)",null,null,null,{"$f":"H114/B116","v":0}]
[]
["TRANSPORTE",null,null,"DMT","QUANT.","UNID.","CUSTO","PARCIAL"]
[{"$nulls":6},"UNITÁRIO"]
[]
[]
[]
[{"$nulls":6},"(G)"]
[]
["CUSTO DIRETO",{"$nulls":5},"(F)+(G)",{"$f":"H118+H125","v":0}]
["BDI",{"$nulls":5},{"$f":"G61","v":0.15759999999999999},{"$f":"G128*H127","v":0}]
["PREÇO UNITÁRIO",{"$nulls":6},{"$f":"ROUND(H127+H128,2)","v":0}]
{"$rows_empty":7}
["COMPOSIÇÃO DE PREÇOS UNITÁRIOS"]
[]
[]
[]
["CÓDIGO:","SERVIÇO:",{"$nulls":5},"UNID."]
["2.3",null,{"$f":"poo!B47","v":"Relé microprocessado digital"},{"$nulls":4},{"$f":"poo!C47","v":"conj."}]
[]
[]
[]
["EQUIPAMENTO","MOD.","QUANT.","UTILIZAÇÃO",null,"CUSTO HORÁRIO",null,"PARCIAL"]
[null,null,null,"PROD.","IMPROD.","PROD.","IMPROD."]
[{"$nulls":7},{"$f":"ROUND(C148*D148*F148,2)+ROUND(C148*E148*G148,2)","v":0}]
[{"$nulls":7},{"$f":"ROUND(C149*D149*F149,2)+ROUND(C149*E149*G149,2)","v":0}]
[]
[]
[]
[]
[]
[]
[{"$nulls":7},{"$f":"ROUND(C156*D156*F156,2)+ROUND(C156*E156*G156,2)","v":0}]
[{"$nulls":6},"(A)",{"$f":"SUM(H148:H156)","v":0}]
[]
["MÃO DE OBRA SUPLEMENTAR",{"$nulls":4},"QUANT.","SALÁRIO","PARCIAL"]
[{"$nulls":6},"HORA"]
[{"$nulls":7},{"$f":"ROUND(F161*G161,2)","v":0}]
[{"$nulls":7},{"$f":"ROUND(F162*G162,2)","v":0}]
[{"$nulls":7},{"$f":"ROUND(F163*G163,2)","v":0}]
[{"$nulls":7},{"$f":"ROUND(F164*G164,2)","v":0}]
[{"$nulls":7},{"$f":"ROUND(F165*G165,2)","v":0}]
[{"$nulls":7},{"$f":"SUM(H161:H165)","v":0}]
[{"$nulls":5},"ENCARGOS SOCIAIS"]
[{"$nulls":5},"TOTAL","(B)",{"$f":"ROUND(H166*(1+H167),2)","v":0}]
[]
["MATERIAIS",null,null,null,"QUANT.","UNID.","CUSTO","PARCIAL"]
[{"$nulls":6},"UNITÁRIO"]
["RELÉ MICROPROCESSADO DIGITAL",null,null,null,1,"CJ",null,{"$f":"ROUND(E172*G172,2)","v":0}]
[{"$nulls":6},{"$f":"MDO!C87","v":0},0]
[{"$nulls":7},0]
[{"$nulls":7},0]
[{"$nulls":7},0]
[{"$nulls":7},0]
[{"$nulls":6},"(C)",{"$f":"SUM(H172:H177)","v":0}]
[]
[{"$nulls":5},"            (A)+(B)+(C) = (D)",null,{"$f":"H157+H168+H178","v":0}]
[]
["PRODUÇÃO DA EQUIPE",1,"(E)"]
[{"$nulls":4},"          CUSTO UNITÁRIO"]
[null,null,null,"          SEM TRANSPORTE (D)/(E) = (F)",null,null,null,{"$f":"H180/B182","v":0}]
[]
["TRANSPORTE",null,null,"DMT","QUANT.","UNID.","CUSTO","PARCIAL"]
[{"$nulls":6},"UNITÁRIO"]
[]
[]
[]
[{"$nulls":6},"(G)"]
[]
["CUSTO DIRETO",{"$nulls":5},"(F)+(G)",{"$f":"H184+H191","v":0}]
["BDI",{"$nulls":5},{"$f":"G128","v":0.15759999999999999},{"$f":"G194*H193","v":0}]
["PREÇO UNITÁRIO",{"$nulls":6},{"$f":"ROUND(H193+H194,2)","v":0}]
{"$rows_empty":7}
["COMPOSIÇÃO DE PREÇOS UNITÁRIOS"]
[]
[]
[]
["CÓDIGO:","SERVIÇO:",{"$nulls":5},"UNID."]
["2.4",null,{"$f":"poo!B49","v":"Transmissor de temperatura PT100"},{"$nulls":4},{"$f":"poo!C49","v":"conj."}]
[]
[]
[]
["EQUIPAMENTO","MOD.","QUANT.","UTILIZAÇÃO",null,"CUSTO HORÁRIO",null,"PARCIAL"]
[null,null,null,"PROD.","IMPROD.","PROD.","IMPROD."]
[{"$nulls":7},{"$f":"ROUND(C214*D214*F214,2)+ROUND(C214*E214*G214,2)","v":0}]
[{"$nulls":7},{"$f":"ROUND(C215*D215*F215,2)+ROUND(C215*E215*G215,2)","v":0}]
[]
[]
[]
[]
[]
[]
[{"$nulls":7},{"$f":"ROUND(C222*D222*F222,2)+ROUND(C222*E222*G222,2)","v":0}]
[{"$nulls":6},"(A)",{"$f":"SUM(H214:H222)","v":0}]
[]
["MÃO DE OBRA SUPLEMENTAR",{"$nulls":4},"QUANT.","SALÁRIO","PARCIAL"]
[{"$nulls":6},"HORA"]
[{"$nulls":7},{"$f":"ROUND(F227*G227,2)","v":0}]
[{"$nulls":7},{"$f":"ROUND(F228*G228,2)","v":0}]
[{"$nulls":7},{"$f":"ROUND(F229*G229,2)","v":0}]
[{"$nulls":7},{"$f":"ROUND(F230*G230,2)","v":0}]
[{"$nulls":7},{"$f":"ROUND(F231*G231,2)","v":0}]
[{"$nulls":7},{"$f":"SUM(H227:H231)","v":0}]
[{"$nulls":5},"ENCARGOS SOCIAIS"]
[{"$nulls":5},"TOTAL","(B)",{"$f":"ROUND(H232*(1+H233),2)","v":0}]
[]
["MATERIAIS",null,null,null,"QUANT.","UNID.","CUSTO","PARCIAL"]
[{"$nulls":6},"UNITÁRIO"]
["TRANSMISSOR DE TEMPERATURA PT100",null,null,null,1,"CJ",null,{"$f":"ROUND(E238*G238,2)","v":0}]
[{"$nulls":6},{"$f":"MDO!C153","v":0},0]
[{"$nulls":7},0]
[{"$nulls":7},0]
[{"$nulls":7},0]
[{"$nulls":7},0]
[{"$nulls":6},"(C)",{"$f":"SUM(H238:H243)","v":0}]
[]
[{"$nulls":5},"            (A)+(B)+(C) = (D)",null,{"$f":"H223+H234+H244","v":0}]
[]
["PRODUÇÃO DA EQUIPE",1,"(E)"]
[{"$nulls":4},"          CUSTO UNITÁRIO"]
[null,null,null,"          SEM TRANSPORTE (D)/(E) = (F)",null,null,null,{"$f":"H246/B248","v":0}]
[]
["TRANSPORTE",null,null,"DMT","QUANT.","UNID.","CUSTO","PARCIAL"]
[{"$nulls":6},"UNITÁRIO"]
[]
[]
[]
[{"$nulls":6},"(G)"]
[]
["CUSTO DIRETO",{"$nulls":5},"(F)+(G)",{"$f":"H250+H257","v":0}]
["BDI",{"$nulls":5},{"$f":"G194","v":0.15759999999999999},{"$f":"G260*H259","v":0}]
["PREÇO UNITÁRIO",{"$nulls":6},{"$f":"ROUND(H259+H260,2)","v":0}]
{"$rows_empty":7}
["COMPOSIÇÃO DE PREÇOS UNITÁRIOS"]
[]
[]
[]
["CÓDIGO:","SERVIÇO:",{"$nulls":5},"UNID."]
["2.5",null,{"$f":"poo!B51","v":"Medidor de vibração"},{"$nulls":4},{"$f":"poo!C51","v":"conj."}]
[]
[]
[]
["EQUIPAMENTO","MOD.","QUANT.","UTILIZAÇÃO",null,"CUSTO HORÁRIO",null,"PARCIAL"]
[null,null,null,"PROD.","IMPROD.","PROD.","IMPROD."]
[{"$nulls":7},{"$f":"ROUND(C280*D280*F280,2)+ROUND(C280*E280*G280,2)","v":0}]
[{"$nulls":7},{"$f":"ROUND(C281*D281*F281,2)+ROUND(C281*E281*G281,2)","v":0}]
[]
[]
[]
[]
[]
[]
[{"$nulls":7},{"$f":"ROUND(C288*D288*F288,2)+ROUND(C288*E288*G288,2)","v":0}]
[{"$nulls":6},"(A)",{"$f":"SUM(H280:H288)","v":0}]
[]
["MÃO DE OBRA SUPLEMENTAR",{"$nulls":4},"QUANT.","SALÁRIO","PARCIAL"]
[{"$nulls":6},"HORA"]
[{"$nulls":7},{"$f":"ROUND(F293*G293,2)","v":0}]
[{"$nulls":7},{"$f":"ROUND(F294*G294,2)","v":0}]
[{"$nulls":6},{"$f":"MDO!C74","v":0},{"$f":"ROUND(F295*G295,2)","v":0}]
[{"$nulls":6},{"$f":"MDO!C136","v":0},{"$f":"ROUND(F296*G296,2)","v":0}]
[{"$nulls":6},{"$f":"MDO!C140","v":0},{"$f":"ROUND(F297*G297,2)","v":0}]
[{"$nulls":7},{"$f":"SUM(H293:H297)","v":0}]
[{"$nulls":5},"ENCARGOS SOCIAIS"]
[{"$nulls":5},"TOTAL","(B)",{"$f":"ROUND(H298*(1+H299),2)","v":0}]
[]
["MATERIAIS",null,null,null,"QUANT.","UNID.","CUSTO","PARCIAL"]
[{"$nulls":6},"UNITÁRIO"]
["MEDIDOR  DE VIBRAÇÃO",null,null,null,1,"CJ",null,{"$f":"ROUND(E304*G304,2)","v":0}]
[{"$nulls":6},{"$f":"MDO!C219","v":0},0]
[{"$nulls":7},0]
[{"$nulls":7},0]
[{"$nulls":7},0]
[{"$nulls":7},0]
[{"$nulls":6},"(C)",{"$f":"SUM(H304:H309)","v":0}]
[]
[{"$nulls":5},"            (A)+(B)+(C) = (D)",null,{"$f":"H289+H300+H310","v":0}]
[]
["PRODUÇÃO DA EQUIPE",1,"(E)"]
[{"$nulls":4},"          CUSTO UNITÁRIO"]
[null,null,null,"          SEM TRANSPORTE (D)/(E) = (F)",null,null,null,{"$f":"H312/B314","v":0}]
[]
["TRANSPORTE",null,null,"DMT","QUANT.","UNID.","CUSTO","PARCIAL"]
[{"$nulls":6},"UNITÁRIO"]
[]
[]
[]
[{"$nulls":6},"(G)"]
[]
["CUSTO DIRETO",{"$nulls":5},"(F)+(G)",{"$f":"H316+H323","v":0}]
["BDI",{"$nulls":5},{"$f":"G260","v":0.15759999999999999},{"$f":"G326*H325","v":0}]
["PREÇO UNITÁRIO",{"$nulls":6},{"$f":"ROUND(H325+H326,2)","v":0}]
{"$rows_empty":7}
["COMPOSIÇÃO DE PREÇOS UNITÁRIOS"]
[]
[]
[]
["CÓDIGO:","SERVIÇO:",{"$nulls":5},"UNID."]
["2.6",null,{"$f":"poo!B53","v":"Transmissor de nível"},{"$nulls":4},{"$f":"poo!C53","v":"conj."}]
[]
[]
[]
["EQUIPAMENTO","MOD.","QUANT.","UTILIZAÇÃO",null,"CUSTO HORÁRIO",null,"PARCIAL"]
[null,null,null,"PROD.","IMPROD.","PROD.","IMPROD."]
[{"$nulls":7},{"$f":"ROUND(C346*D346*F346,2)+ROUND(C346*E346*G346,2)","v":0}]
[{"$nulls":7},{"$f":"ROUND(C347*D347*F347,2)+ROUND(C347*E347*G347,2)","v":0}]
[]
[]
[]
[]
[]
[]
[{"$nulls":7},{"$f":"ROUND(C354*D354*F354,2)+ROUND(C354*E354*G354,2)","v":0}]
[{"$nulls":6},"(A)",{"$f":"SUM(H346:H354)","v":0}]
[]
["MÃO DE OBRA SUPLEMENTAR",{"$nulls":4},"QUANT.","SALÁRIO","PARCIAL"]
[]
[{"$nulls":7},{"$f":"ROUND(F359*G359,2)","v":0}]
[{"$nulls":7},{"$f":"ROUND(F360*G360,2)","v":0}]
[{"$nulls":7},{"$f":"ROUND(F361*G361,2)","v":0}]
[{"$nulls":7},{"$f":"ROUND(F362*G362,2)","v":0}]
[{"$nulls":7},{"$f":"ROUND(F363*G363,2)","v":0}]
[{"$nulls":7},{"$f":"SUM(H359:H363)","v":0}]
[{"$nulls":5},"ENCARGOS SOCIAIS"]
[{"$nulls":5},"TOTAL","(B)",{"$f":"ROUND(H364*(1+H365),2)","v":0}]
[]
["MATERIAIS",null,null,null,"QUANT.","UNID.","CUSTO","PARCIAL"]
[{"$nulls":6},"UNITÁRIO"]
["TRANSMISSOR DE NÍVEL",null,null,null,1,"CJ",null,{"$f":"ROUND(E370*G370,2)","v":0}]
[{"$nulls":6},{"$f":"MDO!C285","v":0},0]
[{"$nulls":7},0]
[{"$nulls":7},0]
[{"$nulls":7},0]
[{"$nulls":7},0]
[{"$nulls":6},"(C)",{"$f":"SUM(H370:H375)","v":0}]
[]
[{"$nulls":5},"            (A)+(B)+(C) = (D)",null,{"$f":"H355+H366+H376","v":0}]
[]
["PRODUÇÃO DA EQUIPE",1,"(E)"]
[{"$nulls":4},"          CUSTO UNITÁRIO"]
[null,null,null,"          SEM TRANSPORTE (D)/(E) = (F)",null,null,null,{"$f":"H378/B380","v":0}]
[]
["TRANSPORTE",null,null,"DMT","QUANT.","UNID.","CUSTO","PARCIAL"]
[{"$nulls":6},"UNITÁRIO"]
[]
[]
[]
[{"$nulls":6},"(G)"]
[]
["CUSTO DIRETO",{"$nulls":5},"(F)+(G)",{"$f":"H382+H389","v":0}]
["BDI",{"$nulls":5},{"$f":"G326","v":0.15759999999999999},{"$f":"G392*H391","v":0}]
["PREÇO UNITÁRIO",{"$nulls":6},{"$f":"ROUND(H391+H392,2)","v":0}]

{"sheet":"MDO","index":5,"n_rows":29,"n_cols":5,"rows_kept":29,"cut":false,"hidden":false,"merged":[]}
["Janeiro: 2012"]
["MÃO DE OBRA MENSALISTA","UNID","SALÁRIO HORA"]
["AUTOMAÇÃO",null,"S/ENCARGOS"]
[]
["ENGENHEIRO - P1","H"]
[]
["ENGENHEIRO DE SOFTWARE - P1","H"]
[]
["ANALISTA DE SISTEMAS - P2","H"]
[]
["ENGENHEIRO -  P2","H"]
[]
["PROGRAMADOR - P4","H"]
[]
["TÉCNICO EM AUTOMAÇÃO - TO","H"]
[]
["TÉCNICO EM INSTRUMENTAÇÃO - T2","H"]
[]
["AUXILIAR TÉCNICO - T3","H"]
[]
[]
[]
["MÃO DE OBRA HORISTA","UNID","SALÁRIO HORA"]
["MONTAGEM",null,null,{"$f":"220/176","v":1.25}]
["ENCARREGADO - T1","H",null,{"$f":"E25/$D$24","v":10.288},12.86]
[]
["TÉCNICO ELETROMECÂNICO - T2","H",null,{"$f":"E27/$D$24","v":8.5040000000000013},10.63]
[]
["AJUDANTE - T3","H",null,{"$f":"E29/$D$24","v":3.6799999999999997},4.5999999999999996]

{"sheet":"CPU-MONTAGEM","index":6,"n_rows":459,"n_cols":12,"rows_kept":459,"cut":false,"hidden":false,"merged":[[443,5,443,6],[447,3,447,6],[400,0,400,7],[404,1,404,2],[405,2,407,6],[405,7,407,7],[409,3,409,4],[409,5,409,6],[339,2,341,6],[339,7,341,7],[343,3,343,4],[343,5,343,6],[377,5,377,6],[381,3,381,6],[277,3,277,4],[277,5,277,6],[311,5,311,6],[315,3,315,6],[334,0,334,7],[338,1,338,2],[245,5,245,6],[249,3,249,6],[268,0,268,7],[272,1,272,2],[273,2,275,6],[273,7,275,7],[202,0,202,7],[206,1,206,2],[207,2,209,6],[207,7,209,7],[211,3,211,4],[211,5,211,6],[141,2,143,6],[141,7,143,7],[145,3,145,4],[145,5,145,6],[179,5,179,6],[183,3,183,6],[79,3,79,4],[79,5,79,6],[113,5,113,6],[117,3,117,6],[136,0,136,7],[140,1,140,2],[46,5,46,6],[50,3,50,6],[70,0,70,7],[74,1,74,2],[75,2,77,6],[75,7,77,7],[4,0,4,7],[8,1,8,2],[9,2,11,6],[9,7,11,7],[13,3,13,4],[13,5,13,6]]}
[]
[]
[]
[]
["COMPOSIÇÃO DE PREÇOS UNITÁRIOS"]
[]
[]
[]
["CÓDIGO:","SERVIÇO:",{"$nulls":5},"UNID."]
[{"$f":"poo!A43","v":"3.1"},null,{"$f":"poo!B43","v":"Medidor Eletromagnético de vazão"},{"$nulls":4},{"$f":"poo!C43","v":"conj."}]
[]
[]
[]
["EQUIPAMENTO","MOD.","QUANT.","UTILIZAÇÃO",null,"CUSTO HORÁRIO",null,"PARCIAL"]
[null,null,null,"PROD.","IMPROD.","PROD.","IMPROD.",{"$nulls":4},12934.87]
[{"$nulls":7},{"$f":"ROUND(C16*D16*F16,2)+ROUND(C16*E16*G16,2)","v":0},null,null,null,0.3]
[{"$nulls":7},{"$f":"ROUND(C17*D17*F17,2)+ROUND(C17*E17*G17,2)","v":0},null,null,null,{"$f":"L15*L16","v":3880.4610000000002}]
[]
[]
[]
[]
[]
[]
[{"$nulls":7},{"$f":"ROUND(C24*D24*F24,2)+ROUND(C24*E24*G24,2)","v":0}]
[{"$nulls":6},"(A)",{"$f":"SUM(H16:H24)","v":0}]
[]
["MÃO DE OBRA SUPLEMENTAR",{"$nulls":4},"QUANT.","SALÁRIO","PARCIAL"]
[{"$nulls":6},"HORA"]
[{"$f":"MDO!A25","v":"ENCARREGADO - T1"},{"$nulls":4},20,null,{"$f":"ROUND(F29*G29,2)","v":0},{"$f":"0.1*13966.8","v":1396.68}]
[{"$f":"MDO!A27","v":"TÉCNICO ELETROMECÂNICO - T2"},{"$nulls":4},44,null,{"$f":"ROUND(F30*G30,2)","v":0}]
[{"$f":"MDO!A29","v":"AJUDANTE - T3"},{"$nulls":4},132,null,{"$f":"ROUND(F31*G31,2)","v":0}]
[{"$nulls":7},{"$f":"ROUND(F32*G32,2)","v":0}]
[]
[{"$nulls":7},{"$f":"SUM(H29:H33)","v":0}]
[{"$nulls":5},"ENCARGOS SOCIAIS",null,1.2796000000000001]
[{"$nulls":5},"TOTAL","(B)",{"$f":"ROUND(H34*(1+H35),2)","v":0}]
[]
["MATERIAIS",null,null,null,"QUANT.","UNID.","CUSTO","PARCIAL"]
[{"$nulls":6},"UNITÁRIO"]
[{"$nulls":7},{"$f":"ROUND(E40*G40,2)","v":0}]
[{"$nulls":7},{"$f":"ROUND(E41*G41,2)","v":0}]
[{"$nulls":7},{"$f":"ROUND(E42*G42,2)","v":0}]
[{"$nulls":7},{"$f":"ROUND(E43*G43,2)","v":0}]
[]
[{"$nulls":6},"(C)",{"$f":"SUM(H40:H44)","v":0}]
[]
[{"$nulls":5},"            (A)+(B)+(C) = (D)",null,{"$f":"H25+H36+H45","v":0}]
[]
["PRODUÇÃO DA EQUIPE",1,"(E)"]
[{"$nulls":4},"          CUSTO UNITÁRIO"]
[null,null,null,"          SEM TRANSPORTE (D)/(E) = (F)",null,null,null,{"$f":"H47/B49","v":0}]
[]
["TRANSPORTE",null,null,"DMT","QUANT.","UNID.","CUSTO","PARCIAL"]
[{"$nulls":6},"UNITÁRIO"]
[]
[]
[]
[{"$nulls":6},"(G)"]
[]
["CUSTO DIRETO",{"$nulls":5},"(F)+(G)",{"$f":"H51+H58","v":0}]
["BDI",{"$nulls":5},0.23019999999999999,{"$f":"G61*H60","v":0}]
["PREÇO UNITÁRIO",{"$nulls":6},{"$f":"ROUND(H60+H61,2)","v":0}]
{"$rows_empty":8}
["COMPOSIÇÃO DE PREÇOS UNITÁRIOS"]
[]
[]
[]
["CÓDIGO:","SERVIÇO:",{"$nulls":5},"UNID."]
[{"$f":"poo!A45","v":"3.2"},null,{"$f":"poo!B45","v":"Transmissor de pressão"},{"$nulls":4},{"$f":"poo!C45","v":"conj."}]
[]
[]
[]
["EQUIPAMENTO","MOD.","QUANT.","UTILIZAÇÃO",null,"CUSTO HORÁRIO",null,"PARCIAL"]
[null,null,null,"PROD.","IMPROD.","PROD.","IMPROD."]
[{"$nulls":7},{"$f":"ROUND(C82*D82*F82,2)+ROUND(C82*E82*G82,2)","v":0}]
[{"$nulls":7},{"$f":"ROUND(C83*D83*F83,2)+ROUND(C83*E83*G83,2)","v":0}]
[]
[]
[]
[]
[]
[]
[{"$nulls":7},{"$f":"ROUND(C90*D90*F90,2)+ROUND(C90*E90*G90,2)","v":0}]
[{"$nulls":6},"(A)",{"$f":"SUM(H82:H90)","v":0}]
[]
["MÃO DE OBRA SUPLEMENTAR",{"$nulls":4},"QUANT.","SALÁRIO","PARCIAL"]
[{"$nulls":6},"HORA"]
[{"$f":"A29","v":"ENCARREGADO - T1"},{"$nulls":4},8,{"$f":"G29","v":0},{"$f":"ROUND(F95*G95,2)","v":0},null,null,2160.89]
[{"$f":"MDO!A27","v":"TÉCNICO ELETROMECÂNICO - T2"},{"$nulls":4},10,null,{"$f":"ROUND(F96*G96,2)","v":0},null,null,0.3]
[{"$f":"MDO!A29","v":"AJUDANTE - T3"},{"$nulls":4},20,null,{"$f":"ROUND(F97*G97,2)","v":0},null,null,{"$f":"K95*K96","v":648.26699999999994}]
[{"$nulls":7},{"$f":"ROUND(F98*G98,2)","v":0}]
[]
[{"$nulls":7},{"$f":"SUM(H95:H99)","v":0}]
[{"$nulls":5},"ENCARGOS SOCIAIS",null,1.2796000000000001]
[{"$nulls":5},"TOTAL","(B)",{"$f":"ROUND(H100*(1+H101),2)","v":0}]
[]
["MATERIAIS",null,null,null,"QUANT.","UNID.","CUSTO","PARCIAL"]
[{"$nulls":6},"UNITÁRIO"]
[{"$nulls":7},{"$f":"ROUND(E106*G106,2)","v":0}]
[{"$nulls":7},0]
[{"$nulls":7},0]
[{"$nulls":7},0]
[{"$nulls":7},0]
[{"$nulls":7},0]
[{"$nulls":6},"(C)",{"$f":"SUM(H106:H111)","v":0}]
[]
[{"$nulls":5},"            (A)+(B)+(C) = (D)",null,{"$f":"H91+H102+H112","v":0}]
[]
["PRODUÇÃO DA EQUIPE",1,"(E)"]
[{"$nulls":4},"          CUSTO UNITÁRIO"]
[null,null,null,"          SEM TRANSPORTE (D)/(E) = (F)",null,null,null,{"$f":"H114/B116","v":0}]
[]
["TRANSPORTE",null,null,"DMT","QUANT.","UNID.","CUSTO","PARCIAL"]
[{"$nulls":6},"UNITÁRIO"]
[]
[]
[]
[{"$nulls":6},"(G)"]
[]
["CUSTO DIRETO",{"$nulls":5},"(F)+(G)",{"$f":"H118+H125","v":0}]
["BDI",{"$nulls":5},{"$f":"G61","v":0.23019999999999999},{"$f":"G128*H127","v":0}]
["PREÇO UNITÁRIO",{"$nulls":6},{"$f":"ROUND(H127+H128,2)","v":0}]
{"$rows_empty":7}
["COMPOSIÇÃO DE PREÇOS UNITÁRIOS"]
[]
[]
[]
["CÓDIGO:","SERVIÇO:",{"$nulls":5},"UNID."]
[{"$f":"poo!A47","v":"3.3"},null,{"$f":"poo!B47","v":"Relé microprocessado digital"},{"$nulls":4},{"$f":"poo!C47","v":"conj."}]
[]
[]
[]
["EQUIPAMENTO","MOD.","QUANT.","UTILIZAÇÃO",null,"CUSTO HORÁRIO",null,"PARCIAL"]
[null,null,null,"PROD.","IMPROD.","PROD.","IMPROD."]
[{"$nulls":7},{"$f":"ROUND(C148*D148*F148,2)+ROUND(C148*E148*G148,2)","v":0}]
[{"$nulls":7},{"$f":"ROUND(C149*D149*F149,2)+ROUND(C149*E149*G149,2)","v":0}]
[]
[]
[]
[]
[]
[]
[{"$nulls":7},{"$f":"ROUND(C156*D156*F156,2)+ROUND(C156*E156*G156,2)","v":0}]
[{"$nulls":6},"(A)",{"$f":"SUM(H148:H156)","v":0}]
[]
["MÃO DE OBRA SUPLEMENTAR",{"$nulls":4},"QUANT.","SALÁRIO","PARCIAL"]
[{"$nulls":6},"HORA",null,null,1285.92]
[{"$f":"A95","v":"ENCARREGADO - T1"},{"$nulls":4},4,null,{"$f":"ROUND(F161*G161,2)","v":0},null,0.3]
[{"$f":"MDO!A27","v":"TÉCNICO ELETROMECÂNICO - T2"},{"$nulls":4},8,null,{"$f":"ROUND(F162*G162,2)","v":0},null,{"$f":"J160*J161","v":385.77600000000001}]
[{"$f":"MDO!A29","v":"AJUDANTE - T3"},{"$nulls":4},10,null,{"$f":"ROUND(F163*G163,2)","v":0}]
[{"$nulls":7},{"$f":"ROUND(F164*G164,2)","v":0}]
[{"$nulls":7},{"$f":"ROUND(F165*G165,2)","v":0}]
[{"$nulls":7},{"$f":"SUM(H161:H165)","v":0}]
[{"$nulls":5},"ENCARGOS SOCIAIS",null,1.2796000000000001]
[{"$nulls":5},"TOTAL","(B)",{"$f":"ROUND(H166*(1+H167),2)","v":0}]
[]
["MATERIAIS",null,null,null,"QUANT.","UNID.","CUSTO","PARCIAL"]
[{"$nulls":6},"UNITÁRIO"]
[{"$nulls":7},{"$f":"ROUND(E172*G172,2)","v":0}]
[{"$nulls":7},0]
[{"$nulls":7},0]
[{"$nulls":7},0]
[{"$nulls":7},0]
[{"$nulls":7},0]
[{"$nulls":6},"(C)",{"$f":"SUM(H172:H177)","v":0}]
[]
[{"$nulls":5},"            (A)+(B)+(C) = (D)",null,{"$f":"H157+H168+H178","v":0}]
[]
["PRODUÇÃO DA EQUIPE",1,"(E)"]
[{"$nulls":4},"          CUSTO UNITÁRIO"]
[null,null,null,"          SEM TRANSPORTE (D)/(E) = (F)",null,null,null,{"$f":"H180/B182","v":0}]
[]
["TRANSPORTE",null,null,"DMT","QUANT.","UNID.","CUSTO","PARCIAL"]
[{"$nulls":6},"UNITÁRIO"]
[]
[]
[]
[{"$nulls":6},"(G)"]
[]
["CUSTO DIRETO",{"$nulls":5},"(F)+(G)",{"$f":"H184+H191","v":0}]
["BDI",{"$nulls":5},{"$f":"G128","v":0.23019999999999999},{"$f":"G194*H193","v":0}]
["PREÇO UNITÁRIO",{"$nulls":6},{"$f":"ROUND(H193+H194,2)","v":0}]
{"$rows_empty":7}
["COMPOSIÇÃO DE PREÇOS UNITÁRIOS"]
[]
[]
[]
["CÓDIGO:","SERVIÇO:",{"$nulls":5},"UNID."]
[{"$f":"poo!A49","v":"3.4"},null,{"$f":"poo!B49","v":"Transmissor de temperatura PT100"},{"$nulls":4},{"$f":"poo!C49","v":"conj."}]
[]
[]
[]
["EQUIPAMENTO","MOD.","QUANT.","UTILIZAÇÃO",null,"CUSTO HORÁRIO",null,"PARCIAL"]
[null,null,null,"PROD.","IMPROD.","PROD.","IMPROD."]
[{"$nulls":7},{"$f":"ROUND(C214*D214*F214,2)+ROUND(C214*E214*G214,2)","v":0}]
[{"$nulls":7},{"$f":"ROUND(C215*D215*F215,2)+ROUND(C215*E215*G215,2)","v":0}]
[]
[]
[]
[]
[]
[]
[{"$nulls":7},{"$f":"ROUND(C222*D222*F222,2)+ROUND(C222*E222*G222,2)","v":0}]
[{"$nulls":6},"(A)",{"$f":"SUM(H214:H222)","v":0}]
[]
["MÃO DE OBRA SUPLEMENTAR",{"$nulls":4},"QUANT.","SALÁRIO","PARCIAL"]
[{"$nulls":6},"HORA"]
[{"$f":"A161","v":"ENCARREGADO - T1"},{"$nulls":4},4,null,{"$f":"ROUND(F227*G227,2)","v":0}]
[{"$f":"MDO!A27","v":"TÉCNICO ELETROMECÂNICO - T2"},{"$nulls":4},8,null,{"$f":"ROUND(F228*G228,2)","v":0}]
[{"$f":"MDO!A29","v":"AJUDANTE - T3"},{"$nulls":4},8,null,{"$f":"ROUND(F229*G229,2)","v":0}]
[{"$nulls":7},{"$f":"ROUND(F230*G230,2)","v":0}]
[{"$nulls":7},{"$f":"ROUND(F231*G231,2)","v":0}]
[{"$nulls":7},{"$f":"SUM(H227:H231)","v":0}]
[{"$nulls":5},"ENCARGOS SOCIAIS",null,1.2796000000000001]
[{"$nulls":5},"TOTAL","(B)",{"$f":"ROUND(H232*(1+H233),2)","v":0}]
[]
["MATERIAIS",null,null,null,"QUANT.","UNID.","CUSTO","PARCIAL"]
[{"$nulls":6},"UNITÁRIO"]
[{"$nulls":6},{"$f":"MDO!C153","v":0},{"$f":"ROUND(E238*G238,2)","v":0}]
[{"$nulls":6},{"$f":"MDO!C153","v":0},0]
[{"$nulls":7},0]
[{"$nulls":7},0]
[{"$nulls":7},0]
[{"$nulls":7},0]
[{"$nulls":6},"(C)",{"$f":"SUM(H238:H243)","v":0}]
[]
[{"$nulls":5},"            (A)+(B)+(C) = (D)",null,{"$f":"H223+H234+H244","v":0}]
[]
["PRODUÇÃO DA EQUIPE",1,"(E)"]
[{"$nulls":4},"          CUSTO UNITÁRIO"]
[null,null,null,"          SEM TRANSPORTE (D)/(E) = (F)",null,null,null,{"$f":"H246/B248","v":0}]
[]
["TRANSPORTE",null,null,"DMT","QUANT.","UNID.","CUSTO","PARCIAL"]
[{"$nulls":6},"UNITÁRIO"]
[]
[]
[]
[{"$nulls":6},"(G)"]
[]
["CUSTO DIRETO",{"$nulls":5},"(F)+(G)",{"$f":"H250+H257","v":0}]
["BDI",{"$nulls":5},{"$f":"G194","v":0.23019999999999999},{"$f":"G260*H259","v":0}]
["PREÇO UNITÁRIO",{"$nulls":6},{"$f":"ROUND(H259+H260,2)","v":0}]
{"$rows_empty":7}
["COMPOSIÇÃO DE PREÇOS UNITÁRIOS"]
[]
[]
[]
["CÓDIGO:","SERVIÇO:",{"$nulls":5},"UNID."]
[{"$f":"poo!A51","v":"3.5"},null,{"$f":"poo!B51","v":"Medidor de vibração"},{"$nulls":4},{"$f":"poo!C51","v":"conj."}]
[]
[]
[]
["EQUIPAMENTO","MOD.","QUANT.","UTILIZAÇÃO",null,"CUSTO HORÁRIO",null,"PARCIAL"]
[null,null,null,"PROD.","IMPROD.","PROD.","IMPROD."]
[{"$nulls":7},{"$f":"ROUND(C280*D280*F280,2)+ROUND(C280*E280*G280,2)","v":0}]
[{"$nulls":7},{"$f":"ROUND(C281*D281*F281,2)+ROUND(C281*E281*G281,2)","v":0}]
[]
[]
[]
[]
[]
[]
[{"$nulls":7},{"$f":"ROUND(C288*D288*F288,2)+ROUND(C288*E288*G288,2)","v":0}]
[{"$nulls":6},"(A)",{"$f":"SUM(H280:H288)","v":0}]
[]
["MÃO DE OBRA SUPLEMENTAR",{"$nulls":4},"QUANT.","SALÁRIO","PARCIAL"]
[{"$nulls":6},"HORA"]
[{"$f":"A227","v":"ENCARREGADO - T1"},{"$nulls":4},8,null,{"$f":"ROUND(F293*G293,2)","v":0}]
[{"$f":"MDO!A27","v":"TÉCNICO ELETROMECÂNICO - T2"},{"$nulls":4},44,null,{"$f":"ROUND(F294*G294,2)","v":0}]
[{"$f":"MDO!A29","v":"AJUDANTE - T3"},{"$nulls":4},120,null,{"$f":"ROUND(F295*G295,2)","v":0}]
[{"$nulls":7},{"$f":"ROUND(F296*G296,2)","v":0}]
[{"$nulls":6},{"$f":"MDO!C140","v":0},{"$f":"ROUND(F297*G297,2)","v":0}]
[{"$nulls":7},{"$f":"SUM(H293:H297)","v":0}]
[{"$nulls":5},"ENCARGOS SOCIAIS",null,1.2796000000000001]
[{"$nulls":5},"TOTAL","(B)",{"$f":"ROUND(H298*(1+H299),2)","v":0}]
[]
["MATERIAIS",null,null,null,"QUANT.","UNID.","CUSTO","PARCIAL"]
[{"$nulls":6},"UNITÁRIO"]
[{"$nulls":6},{"$f":"MDO!C219","v":0},{"$f":"ROUND(E304*G304,2)","v":0}]
[{"$nulls":6},{"$f":"MDO!C219","v":0},0]
[{"$nulls":7},0]
[{"$nulls":7},0]
[{"$nulls":7},0]
[{"$nulls":7},0]
[{"$nulls":6},"(C)",{"$f":"SUM(H304:H309)","v":0}]
[]
[{"$nulls":5},"            (A)+(B)+(C) = (D)",null,{"$f":"H289+H300+H310","v":0}]
[]
["PRODUÇÃO DA EQUIPE",1,"(E)"]
[{"$nulls":4},"          CUSTO UNITÁRIO"]
[null,null,null,"          SEM TRANSPORTE (D)/(E) = (F)",null,null,null,{"$f":"H312/B314","v":0}]
[]
["TRANSPORTE",null,null,"DMT","QUANT.","UNID.","CUSTO","PARCIAL"]
[{"$nulls":6},"UNITÁRIO"]
[]
[]
[]
[{"$nulls":6},"(G)"]
[]
["CUSTO DIRETO",{"$nulls":5},"(F)+(G)",{"$f":"H316+H323","v":0}]
["BDI",{"$nulls":5},{"$f":"G260","v":0.23019999999999999},{"$f":"G326*H325","v":0}]
["PREÇO UNITÁRIO",{"$nulls":6},{"$f":"ROUND(H325+H326,2)","v":0}]
{"$rows_empty":7}
["COMPOSIÇÃO DE PREÇOS UNITÁRIOS"]
[]
[]
[]
["CÓDIGO:","SERVIÇO:",{"$nulls":5},"UNID."]
[{"$f":"poo!A53","v":"3.6"},null,{"$f":"poo!B53","v":"Transmissor de nível"},{"$nulls":4},{"$f":"poo!C53","v":"conj."}]
[]
[]
[]
["EQUIPAMENTO","MOD.","QUANT.","UTILIZAÇÃO",null,"CUSTO HORÁRIO",null,"PARCIAL"]
[null,null,null,"PROD.","IMPROD.","PROD.","IMPROD."]
[{"$nulls":7},{"$f":"ROUND(C346*D346*F346,2)+ROUND(C346*E346*G346,2)","v":0}]
[{"$nulls":7},{"$f":"ROUND(C347*D347*F347,2)+ROUND(C347*E347*G347,2)","v":0}]
[]
[]
[]
[]
[]
[]
[{"$nulls":7},{"$f":"ROUND(C354*D354*F354,2)+ROUND(C354*E354*G354,2)","v":0}]
[{"$nulls":6},"(A)",{"$f":"SUM(H346:H354)","v":0}]
[]
["MÃO DE OBRA SUPLEMENTAR",{"$nulls":4},"QUANT.","SALÁRIO","PARCIAL"]
[{"$nulls":6},"HORA"]
[{"$f":"A293","v":"ENCARREGADO - T1"},{"$nulls":4},10,null,{"$f":"ROUND(F359*G359,2)","v":0},null,7317.96]
[{"$f":"MDO!A27","v":"TÉCNICO ELETROMECÂNICO - T2"},{"$nulls":4},44,null,{"$f":"ROUND(F360*G360,2)","v":0},null,0.3]
[{"$f":"MDO!A29","v":"AJUDANTE - T3"},{"$nulls":4},88,null,{"$f":"ROUND(F361*G361,2)","v":0},null,{"$f":"J359*J360","v":2195.3879999999999}]
[{"$nulls":7},{"$f":"ROUND(F362*G362,2)","v":0}]
[{"$nulls":7},{"$f":"ROUND(F363*G363,2)","v":0}]
[{"$nulls":7},{"$f":"SUM(H359:H363)","v":0}]
[{"$nulls":5},"ENCARGOS SOCIAIS",null,1.2796000000000001]
[{"$nulls":5},"TOTAL","(B)",{"$f":"ROUND(H364*(1+H365),2)","v":0}]
[]
["MATERIAIS",null,null,null,"QUANT.","UNID.","CUSTO","PARCIAL"]
[{"$nulls":6},"UNITÁRIO"]
[{"$nulls":7},{"$f":"ROUND(E370*G370,2)","v":0}]
[{"$nulls":7},0]
[{"$nulls":7},0]
[{"$nulls":7},0]
[{"$nulls":7},0]
[{"$nulls":7},0]
[{"$nulls":6},"(C)",{"$f":"SUM(H370:H375)","v":0}]
[]
[{"$nulls":5},"            (A)+(B)+(C) = (D)",null,{"$f":"H355+H366+H376","v":0}]
[]
["PRODUÇÃO DA EQUIPE",1,"(E)"]
[{"$nulls":4},"          CUSTO UNITÁRIO"]
[null,null,null,"          SEM TRANSPORTE (D)/(E) = (F)",null,null,null,{"$f":"H378/B380","v":0}]
[]
["TRANSPORTE",null,null,"DMT","QUANT.","UNID.","CUSTO","PARCIAL"]
[{"$nulls":6},"UNITÁRIO"]
[]
[]
[]
[{"$nulls":6},"(G)"]
[]
["CUSTO DIRETO",{"$nulls":5},"(F)+(G)",{"$f":"H382+H389","v":0}]
["BDI",{"$nulls":5},{"$f":"G326","v":0.23019999999999999},{"$f":"G392*H391","v":0}]
["PREÇO UNITÁRIO",{"$nulls":6},{"$f":"ROUND(H391+H392,2)","v":0}]
{"$rows_empty":7}
["COMPOSIÇÃO DE PREÇOS UNITÁRIOS"]
[]
[]
[]
["CÓDIGO:","SERVIÇO:",{"$nulls":5},"UNID."]
[{"$f":"poo!A56","v":"4.1"},null,{"$f":"poo!B56","v":"Fornecimento de 01 veiculo utilitário com ar condicionado para apoio à fiscalização, incluindomdespesas com combustivel, óleo, manutenção, licenciamento, seguros e impostos"},{"$nulls":4},{"$f":"poo!C56","v":"mês"}]
[]
[]
[]
["EQUIPAMENTO","MOD.","QUANT.","UTILIZAÇÃO",null,"CUSTO HORÁRIO",null,"PARCIAL"]
[null,null,null,"PROD.","IMPROD.","PROD.","IMPROD."]
[{"$nulls":7},{"$f":"ROUND(C412*D412*F412,2)+ROUND(C412*E412*G412,2)","v":0}]
[{"$nulls":7},{"$f":"ROUND(C413*D413*F413,2)+ROUND(C413*E413*G413,2)","v":0}]
[]
[]
[]
[]
[]
[]
[{"$nulls":7},{"$f":"ROUND(C420*D420*F420,2)+ROUND(C420*E420*G420,2)","v":0}]
[{"$nulls":6},"(A)",{"$f":"SUM(H412:H420)","v":0}]
[]
["MÃO DE OBRA SUPLEMENTAR",{"$nulls":4},"QUANT.","SALÁRIO","PARCIAL"]
[]
[{"$nulls":7},{"$f":"ROUND(F425*G425,2)","v":0}]
[{"$nulls":7},{"$f":"ROUND(F426*G426,2)","v":0}]
[{"$nulls":7},{"$f":"ROUND(F427*G427,2)","v":0}]
[{"$nulls":7},{"$f":"ROUND(F428*G428,2)","v":0}]
[{"$nulls":7},{"$f":"ROUND(F429*G429,2)","v":0}]
[{"$nulls":7},{"$f":"SUM(H425:H429)","v":0}]
[{"$nulls":5},"ENCARGOS SOCIAIS"]
[{"$nulls":5},"TOTAL","(B)",{"$f":"ROUND(H430*(1+H431),2)","v":0}]
[]
["MATERIAIS",null,null,null,"QUANT.","UNID.","CUSTO","PARCIAL"]
[{"$nulls":6},"UNITÁRIO"]
["VEÍCULO PICK-UP CABINE DUPLA 4X4 (163 CV)",null,null,null,1,"MÊS",null,{"$f":"ROUND(E436*G436,2)","v":0}]
[{"$nulls":6},{"$f":"MDO!C351","v":0},0]
[{"$nulls":7},0]
[{"$nulls":7},0]
[{"$nulls":7},0]
[{"$nulls":7},0]
[{"$nulls":6},"(C)",{"$f":"SUM(H436:H441)","v":0}]
[]
[{"$nulls":5},"            (A)+(B)+(C) = (D)",null,{"$f":"H421+H432+H442","v":0}]
[]
["PRODUÇÃO DA EQUIPE",1,"(E)"]
[{"$nulls":4},"          CUSTO UNITÁRIO"]
[null,null,null,"          SEM TRANSPORTE (D)/(E) = (F)",null,null,null,{"$f":"H444/B446","v":0}]
[]
["TRANSPORTE",null,null,"DMT","QUANT.","UNID.","CUSTO","PARCIAL"]
[{"$nulls":6},"UNITÁRIO"]
[]
[]
[]
[{"$nulls":6},"(G)"]
[]
["CUSTO DIRETO",{"$nulls":5},"(F)+(G)",{"$f":"H448+H455","v":0}]
["BDI",{"$nulls":5},{"$f":"G392","v":0.23019999999999999},{"$f":"G458*H457","v":0}]
["PREÇO UNITÁRIO",{"$nulls":6},{"$f":"ROUND(H457+H458,2)","v":0}]

{"sheet":"CPU-AUTOMAÇÃO","index":7,"n_rows":393,"n_cols":11,"rows_kept":393,"cut":false,"hidden":false,"merged":[[13,3,13,4],[13,5,13,6],[46,5,46,6],[50,3,50,6],[4,0,4,7],[8,1,8,2],[9,2,11,6],[9,7,11,7],[79,3,79,4],[79,5,79,6],[113,5,113,6],[117,3,117,6],[70,0,70,7],[74,1,74,2],[75,2,77,6],[75,7,77,7],[145,3,145,4],[145,5,145,6],[179,5,179,6],[183,3,183,6],[136,0,136,7],[140,1,140,2],[141,2,143,6],[141,7,143,7],[211,3,211,4],[211,5,211,6],[245,5,245,6],[249,3,249,6],[202,0,202,7],[206,1,206,2],[207,2,209,6],[207,7,209,7],[277,3,277,4],[277,5,277,6],[311,5,311,6],[315,3,315,6],[268,0,268,7],[272,1,272,2],[273,2,275,6],[273,7,275,7],[343,3,343,4],[343,5,343,6],[377,5,377,6],[381,3,381,6],[334,0,334,7],[338,1,338,2],[339,2,341,6],[339,7,341,7]]}
[]
[]
[]
[]
["COMPOSIÇÃO DE PREÇOS UNITÁRIOS"]
[]
[]
[]
["CÓDIGO:","SERVIÇO:",{"$nulls":5},"UNID."]
[{"$f":"poo!A13","v":"1.1"},null,{"$f":"poo!B13","v":"Desenvolvimento de Software"},{"$nulls":4},{"$f":"poo!C13","v":"dia"}]
[]
[]
[]
["EQUIPAMENTO","MOD.","QUANT.","UTILIZAÇÃO",null,"CUSTO HORÁRIO",null,"PARCIAL"]
[null,null,null,"PROD.","IMPROD.","PROD.","IMPROD."]
[{"$nulls":7},{"$f":"ROUND(C16*D16*F16,2)+ROUND(C16*E16*G16,2)","v":0}]
[{"$nulls":7},{"$f":"ROUND(C17*D17*F17,2)+ROUND(C17*E17*G17,2)","v":0}]
[]
[]
[]
[]
[]
[]
[{"$nulls":7},{"$f":"ROUND(C24*D24*F24,2)+ROUND(C24*E24*G24,2)","v":0}]
[{"$nulls":6},"(A)",{"$f":"SUM(H16:H24)","v":0}]
[]
["MÃO DE OBRA SUPLEMENTAR",{"$nulls":4},"QUANT.","SALÁRIO","PARCIAL"]
[{"$nulls":6},"HORA"]
[{"$f":"MDO!A5","v":"ENGENHEIRO - P1"},{"$nulls":4},2,null,{"$f":"ROUND(F29*G29,2)","v":0}]
["ENGENHEIRO DE SOFTWARE - P1",{"$nulls":4},4,null,{"$f":"ROUND(F30*G30,2)","v":0}]
["ANALISTA DE SISTEMAS - P2",{"$nulls":4},8,null,{"$f":"ROUND(F31*G31,2)","v":0}]
["PROGRAMADOR - P4",{"$nulls":4},8,null,{"$f":"ROUND(F32*G32,2)","v":0}]
[]
[{"$nulls":7},{"$f":"SUM(H29:H33)","v":0}]
[{"$nulls":5},"ENCARGOS SOCIAIS",null,0.77249999999999996]
[{"$nulls":5},"TOTAL","(B)",{"$f":"ROUND(H34*(1+H35),2)","v":0}]
[]
["MATERIAIS",null,null,null,"QUANT.","UNID.","CUSTO","PARCIAL"]
[{"$nulls":6},"UNITÁRIO"]
[{"$nulls":7},{"$f":"ROUND(E40*G40,2)","v":0}]
[{"$nulls":7},{"$f":"ROUND(E41*G41,2)","v":0}]
[{"$nulls":7},{"$f":"ROUND(E42*G42,2)","v":0}]
[{"$nulls":7},{"$f":"ROUND(E43*G43,2)","v":0}]
[]
[{"$nulls":6},"(C)",{"$f":"SUM(H40:H44)","v":0}]
[]
[{"$nulls":5},"            (A)+(B)+(C) = (D)",null,{"$f":"H25+H36+H45","v":0}]
[]
["PRODUÇÃO DA EQUIPE",1,"(E)"]
[{"$nulls":4},"          CUSTO UNITÁRIO"]
[null,null,null,"          SEM TRANSPORTE (D)/(E) = (F)",null,null,null,{"$f":"H47/B49","v":0}]
[]
["TRANSPORTE",null,null,"DMT","QUANT.","UNID.","CUSTO","PARCIAL"]
[{"$nulls":6},"UNITÁRIO"]
[]
[]
[]
[{"$nulls":6},"(G)"]
[]
["CUSTO DIRETO",{"$nulls":5},"(F)+(G)",{"$f":"H51+H58","v":0}]
["BDI",{"$nulls":5},0.23019999999999999,{"$f":"G61*H60","v":0}]
["PREÇO UNITÁRIO",{"$nulls":6},{"$f":"ROUND(H60+H61,2)","v":0}]
{"$rows_empty":8}
["COMPOSIÇÃO DE PREÇOS UNITÁRIOS"]
[]
[]
[]
["CÓDIGO:","SERVIÇO:",{"$nulls":5},"UNID."]
[{"$f":"poo!A15","v":"1.2"},null,{"$f":"poo!B15","v":"Calibração dos instrumentos"},{"$nulls":4},{"$f":"poo!C15","v":"dia"}]
[]
[]
[]
["EQUIPAMENTO","MOD.","QUANT.","UTILIZAÇÃO",null,"CUSTO HORÁRIO",null,"PARCIAL"]
[null,null,null,"PROD.","IMPROD.","PROD.","IMPROD."]
[{"$nulls":7},{"$f":"ROUND(C82*D82*F82,2)+ROUND(C82*E82*G82,2)","v":0}]
[{"$nulls":7},{"$f":"ROUND(C83*D83*F83,2)+ROUND(C83*E83*G83,2)","v":0}]
[]
[]
[]
[]
[]
[]
[{"$nulls":7},{"$f":"ROUND(C90*D90*F90,2)+ROUND(C90*E90*G90,2)","v":0}]
[{"$nulls":6},"(A)",{"$f":"SUM(H82:H90)","v":0}]
[]
["MÃO DE OBRA SUPLEMENTAR",{"$nulls":4},"QUANT.","SALÁRIO","PARCIAL"]
[{"$nulls":6},"HORA"]
[{"$f":"MDO!A15","v":"TÉCNICO EM AUTOMAÇÃO - TO"},{"$nulls":4},8,null,{"$f":"ROUND(F95*G95,2)","v":0}]
[{"$f":"MDO!A17","v":"TÉCNICO EM INSTRUMENTAÇÃO - T2"},{"$nulls":4},16,null,{"$f":"ROUND(F96*G96,2)","v":0}]
[{"$nulls":7},{"$f":"ROUND(F97*G97,2)","v":0}]
[{"$nulls":7},{"$f":"ROUND(F98*G98,2)","v":0}]
[]
[{"$nulls":7},{"$f":"SUM(H95:H99)","v":0}]
[{"$nulls":5},"ENCARGOS SOCIAIS",null,0.77249999999999996]
[{"$nulls":5},"TOTAL","(B)",{"$f":"ROUND(H100*(1+H101),2)","v":0}]
[]
["MATERIAIS",null,null,null,"QUANT.","UNID.","CUSTO","PARCIAL"]
[{"$nulls":6},"UNITÁRIO"]
[{"$nulls":7},{"$f":"ROUND(E106*G106,2)","v":0}]
[{"$nulls":7},0,null,null,{"$f":"0.1*H102","v":0}]
[{"$nulls":7},0]
[{"$nulls":7},0]
[{"$nulls":7},0]
[{"$nulls":7},0]
[{"$nulls":6},"(C)",{"$f":"SUM(H106:H111)","v":0}]
[]
[{"$nulls":5},"            (A)+(B)+(C) = (D)",null,{"$f":"H91+H102+H112","v":0}]
[]
["PRODUÇÃO DA EQUIPE",1,"(E)"]
[{"$nulls":4},"          CUSTO UNITÁRIO"]
[null,null,null,"          SEM TRANSPORTE (D)/(E) = (F)",null,null,null,{"$f":"H114/B116","v":0}]
[]
["TRANSPORTE",null,null,"DMT","QUANT.","UNID.","CUSTO","PARCIAL"]
[{"$nulls":6},"UNITÁRIO"]
[]
[]
[]
[{"$nulls":6},"(G)"]
[]
["CUSTO DIRETO",{"$nulls":5},"(F)+(G)",{"$f":"H118+H125","v":0}]
["BDI",{"$nulls":5},{"$f":"G61","v":0.23019999999999999},{"$f":"G128*H127","v":0}]
["PREÇO UNITÁRIO",{"$nulls":6},{"$f":"ROUND(H127+H128,2)","v":0}]
{"$rows_empty":7}
["COMPOSIÇÃO DE PREÇOS UNITÁRIOS"]
[]
[]
[]
["CÓDIGO:","SERVIÇO:",{"$nulls":5},"UNID."]
[{"$f":"poo!A17","v":"1.3"},null,{"$f":"poo!B17","v":"Comissionamento, testes e colocação em operação"},{"$nulls":4},{"$f":"poo!C17","v":"dia"}]
[]
[]
[]
["EQUIPAMENTO","MOD.","QUANT.","UTILIZAÇÃO",null,"CUSTO HORÁRIO",null,"PARCIAL"]
[null,null,null,"PROD.","IMPROD.","PROD.","IMPROD."]
[{"$nulls":7},{"$f":"ROUND(C148*D148*F148,2)+ROUND(C148*E148*G148,2)","v":0}]
[{"$nulls":7},{"$f":"ROUND(C149*D149*F149,2)+ROUND(C149*E149*G149,2)","v":0}]
[]
[]
[]
[]
[]
[]
[{"$nulls":7},{"$f":"ROUND(C156*D156*F156,2)+ROUND(C156*E156*G156,2)","v":0}]
[{"$nulls":6},"(A)",{"$f":"SUM(H148:H156)","v":0}]
[]
["MÃO DE OBRA SUPLEMENTAR",{"$nulls":4},"QUANT.","SALÁRIO","PARCIAL"]
[{"$nulls":6},"HORA"]
[{"$f":"MDO!A5","v":"ENGENHEIRO - P1"},{"$nulls":4},8,null,{"$f":"ROUND(F161*G161,2)","v":0}]
[{"$f":"MDO!A15","v":"TÉCNICO EM AUTOMAÇÃO - TO"},{"$nulls":4},8,null,{"$f":"ROUND(F162*G162,2)","v":0}]
[{"$f":"MDO!A17","v":"TÉCNICO EM INSTRUMENTAÇÃO - T2"},{"$nulls":4},8,null,{"$f":"ROUND(F163*G163,2)","v":0}]
[{"$f":"MDO!A19","v":"AUXILIAR TÉCNICO - T3"},{"$nulls":4},16,null,{"$f":"ROUND(F164*G164,2)","v":0}]
[{"$nulls":7},{"$f":"ROUND(F165*G165,2)","v":0}]
[{"$nulls":7},{"$f":"SUM(H161:H165)","v":0}]
[{"$nulls":5},"ENCARGOS SOCIAIS",null,0.77249999999999996]
[{"$nulls":5},"TOTAL","(B)",{"$f":"ROUND(H166*(1+H167),2)","v":0}]
[]
["MATERIAIS",null,null,null,"QUANT.","UNID.","CUSTO","PARCIAL"]
[{"$nulls":6},"UNITÁRIO"]
[{"$nulls":7},{"$f":"ROUND(E172*G172,2)","v":0}]
[{"$nulls":7},0]
[{"$nulls":7},0]
[{"$nulls":7},0]
[{"$nulls":7},0]
[{"$nulls":7},0]
[{"$nulls":6},"(C)",{"$f":"SUM(H172:H177)","v":0}]
[]
[{"$nulls":5},"            (A)+(B)+(C) = (D)",null,{"$f":"H157+H168+H178","v":0}]
[]
["PRODUÇÃO DA EQUIPE",1,"(E)"]
[{"$nulls":4},"          CUSTO UNITÁRIO"]
[null,null,null,"          SEM TRANSPORTE (D)/(E) = (F)",null,null,null,{"$f":"H180/B182","v":0}]
[]
["TRANSPORTE",null,null,"DMT","QUANT.","UNID.","CUSTO","PARCIAL"]
[{"$nulls":6},"UNITÁRIO"]
[]
[]
[]
[{"$nulls":6},"(G)"]
[]
["CUSTO DIRETO",{"$nulls":5},"(F)+(G)",{"$f":"H184+H191","v":0}]
["BDI",{"$nulls":5},{"$f":"G128","v":0.23019999999999999},{"$f":"G194*H193","v":0}]
["PREÇO UNITÁRIO",{"$nulls":6},{"$f":"ROUND(H193+H194,2)","v":0}]
{"$rows_empty":7}
["COMPOSIÇÃO DE PREÇOS UNITÁRIOS"]
[]
[]
[]
["CÓDIGO:","SERVIÇO:",{"$nulls":5},"UNID."]
[{"$f":"poo!A19","v":"1.4"},null,{"$f":"poo!B19","v":"Operação Assistida"},{"$nulls":4},{"$f":"poo!C19","v":"dia"}]
[]
[]
[]
["EQUIPAMENTO","MOD.","QUANT.","UTILIZAÇÃO",null,"CUSTO HORÁRIO",null,"PARCIAL"]
[null,null,null,"PROD.","IMPROD.","PROD.","IMPROD."]
[{"$nulls":7},{"$f":"ROUND(C214*D214*F214,2)+ROUND(C214*E214*G214,2)","v":0}]
[{"$nulls":7},{"$f":"ROUND(C215*D215*F215,2)+ROUND(C215*E215*G215,2)","v":0}]
[]
[]
[]
[]
[]
[]
[{"$nulls":7},{"$f":"ROUND(C222*D222*F222,2)+ROUND(C222*E222*G222,2)","v":0}]
[{"$nulls":6},"(A)",{"$f":"SUM(H214:H222)","v":0}]
[]
["MÃO DE OBRA SUPLEMENTAR",{"$nulls":4},"QUANT.","SALÁRIO","PARCIAL"]
[{"$nulls":6},"HORA"]
[{"$f":"MDO!A5","v":"ENGENHEIRO - P1"},{"$nulls":4},8,null,{"$f":"ROUND(F227*G227,2)","v":0}]
[{"$f":"MDO!A15","v":"TÉCNICO EM AUTOMAÇÃO - TO"},{"$nulls":4},8,null,{"$f":"ROUND(F228*G228,2)","v":0}]
[{"$f":"A96","v":"TÉCNICO EM INSTRUMENTAÇÃO - T2"},{"$nulls":4},8,null,{"$f":"ROUND(F229*G229,2)","v":0}]
[{"$f":"MDO!A19","v":"AUXILIAR TÉCNICO - T3"},{"$nulls":4},24,null,{"$f":"ROUND(F230*G230,2)","v":0}]
[{"$nulls":7},{"$f":"ROUND(F231*G231,2)","v":0}]
[{"$nulls":7},{"$f":"SUM(H227:H231)","v":0}]
[{"$nulls":5},"ENCARGOS SOCIAIS",null,0.77249999999999996]
[{"$nulls":5},"TOTAL","(B)",{"$f":"ROUND(H232*(1+H233),2)","v":0}]
[]
["MATERIAIS",null,null,null,"QUANT.","UNID.","CUSTO","PARCIAL"]
[{"$nulls":6},"UNITÁRIO"]
[{"$nulls":7},{"$f":"ROUND(E238*G238,2)","v":0}]
[{"$nulls":7},0]
[{"$nulls":7},0]
[{"$nulls":7},0]
[{"$nulls":7},0]
[{"$nulls":7},0]
[{"$nulls":6},"(C)",{"$f":"SUM(H238:H243)","v":0}]
[]
[{"$nulls":5},"            (A)+(B)+(C) = (D)",null,{"$f":"H223+H234+H244","v":0}]
[]
["PRODUÇÃO DA EQUIPE",1,"(E)"]
[{"$nulls":4},"          CUSTO UNITÁRIO"]
[null,null,null,"          SEM TRANSPORTE (D)/(E) = (F)",null,null,null,{"$f":"H246/B248","v":0}]
[]
["TRANSPORTE",null,null,"DMT","QUANT.","UNID.","CUSTO","PARCIAL"]
[{"$nulls":6},"UNITÁRIO"]
[]
[]
[]
[{"$nulls":6},"(G)"]
[]
["CUSTO DIRETO",{"$nulls":5},"(F)+(G)",{"$f":"H250+H257","v":0}]
["BDI",{"$nulls":5},{"$f":"G194","v":0.23019999999999999},{"$f":"G260*H259","v":0}]
["PREÇO UNITÁRIO",{"$nulls":6},{"$f":"ROUND(H259+H260,2)","v":0}]
{"$rows_empty":7}
["COMPOSIÇÃO DE PREÇOS UNITÁRIOS"]
[]
[]
[]
["CÓDIGO:","SERVIÇO:",{"$nulls":5},"UNID."]
[{"$f":"poo!A21","v":"1.5"},null,{"$f":"poo!B21","v":"Treinamento"},{"$nulls":4},{"$f":"poo!C21","v":"dia"}]
[]
[]
[]
["EQUIPAMENTO","MOD.","QUANT.","UTILIZAÇÃO",null,"CUSTO HORÁRIO",null,"PARCIAL"]
[null,null,null,"PROD.","IMPROD.","PROD.","IMPROD."]
[{"$nulls":7},{"$f":"ROUND(C280*D280*F280,2)+ROUND(C280*E280*G280,2)","v":0}]
[{"$nulls":7},{"$f":"ROUND(C281*D281*F281,2)+ROUND(C281*E281*G281,2)","v":0}]
[]
[]
[]
[]
[]
[]
[{"$nulls":7},{"$f":"ROUND(C288*D288*F288,2)+ROUND(C288*E288*G288,2)","v":0}]
[{"$nulls":6},"(A)",{"$f":"SUM(H280:H288)","v":0}]
[]
["MÃO DE OBRA SUPLEMENTAR",{"$nulls":4},"QUANT.","SALÁRIO","PARCIAL"]
[{"$nulls":6},"HORA"]
[{"$f":"MDO!A11","v":"ENGENHEIRO -  P2"},{"$nulls":4},4,null,{"$f":"ROUND(F293*G293,2)","v":0}]
[{"$f":"MDO!A15","v":"TÉCNICO EM AUTOMAÇÃO - TO"},{"$nulls":4},8,null,{"$f":"ROUND(F294*G294,2)","v":0}]
[{"$nulls":6},{"$f":"MDO!C74","v":0},{"$f":"ROUND(F295*G295,2)","v":0}]
[{"$nulls":6},{"$f":"MDO!C136","v":0},{"$f":"ROUND(F296*G296,2)","v":0}]
[{"$nulls":6},{"$f":"MDO!C140","v":0},{"$f":"ROUND(F297*G297,2)","v":0}]
[{"$nulls":7},{"$f":"SUM(H293:H297)","v":0}]
[{"$nulls":5},"ENCARGOS SOCIAIS",null,0.77249999999999996]
[{"$nulls":5},"TOTAL","(B)",{"$f":"ROUND(H298*(1+H299),2)","v":0}]
[]
["MATERIAIS",null,null,null,"QUANT.","UNID.","CUSTO","PARCIAL"]
[{"$nulls":6},"UNITÁRIO"]
[{"$nulls":7},{"$f":"ROUND(E304*G304,2)","v":0}]
[{"$nulls":7},0]
[{"$nulls":7},0]
[{"$nulls":7},0]
[{"$nulls":7},0]
[{"$nulls":7},0]
[{"$nulls":6},"(C)",{"$f":"SUM(H304:H309)","v":0}]
[]
[{"$nulls":5},"            (A)+(B)+(C) = (D)",null,{"$f":"H289+H300+H310","v":0}]
[]
["PRODUÇÃO DA EQUIPE",1,"(E)"]
[{"$nulls":4},"          CUSTO UNITÁRIO"]
[null,null,null,"          SEM TRANSPORTE (D)/(E) = (F)",null,null,null,{"$f":"H312/B314","v":0}]
[]
["TRANSPORTE",null,null,"DMT","QUANT.","UNID.","CUSTO","PARCIAL"]
[{"$nulls":6},"UNITÁRIO"]
[]
[]
[]
[{"$nulls":6},"(G)"]
[]
["CUSTO DIRETO",{"$nulls":5},"(F)+(G)",{"$f":"H316+H323","v":0}]
["BDI",{"$nulls":5},{"$f":"G260","v":0.23019999999999999},{"$f":"G326*H325","v":0}]
["PREÇO UNITÁRIO",{"$nulls":6},{"$f":"ROUND(H325+H326,2)","v":0}]
{"$rows_empty":7}
["COMPOSIÇÃO DE PREÇOS UNITÁRIOS"]
[]
[]
[]
["CÓDIGO:","SERVIÇO:",{"$nulls":5},"UNID."]
[{"$f":"poo!A23","v":"1.6"},null,{"$f":"poo!B23","v":"Recuperação e Adaptação"},{"$nulls":4},{"$f":"poo!C23","v":"dia"}]
[]
[]
[]
["EQUIPAMENTO","MOD.","QUANT.","UTILIZAÇÃO",null,"CUSTO HORÁRIO",null,"PARCIAL"]
[null,null,null,"PROD.","IMPROD.","PROD.","IMPROD."]
[{"$nulls":7},{"$f":"ROUND(C346*D346*F346,2)+ROUND(C346*E346*G346,2)","v":0}]
[{"$nulls":7},{"$f":"ROUND(C347*D347*F347,2)+ROUND(C347*E347*G347,2)","v":0}]
[]
[]
[]
[]
[]
[]
[{"$nulls":7},{"$f":"ROUND(C354*D354*F354,2)+ROUND(C354*E354*G354,2)","v":0}]
[{"$nulls":6},"(A)",{"$f":"SUM(H346:H354)","v":0}]
[]
["MÃO DE OBRA SUPLEMENTAR",{"$nulls":4},"QUANT.","SALÁRIO","PARCIAL"]
[{"$nulls":6},"HORA"]
["ENGENHEIRO - P1",{"$nulls":4},8,null,{"$f":"ROUND(F359*G359,2)","v":0}]
[{"$f":"MDO!A15","v":"TÉCNICO EM AUTOMAÇÃO - TO"},{"$nulls":4},8,null,{"$f":"ROUND(F360*G360,2)","v":0}]
[{"$f":"MDO!A17","v":"TÉCNICO EM INSTRUMENTAÇÃO - T2"},{"$nulls":4},8,null,{"$f":"ROUND(F361*G361,2)","v":0}]
["AUXILIAR TÉCNICO - T3",{"$nulls":4},32,null,{"$f":"ROUND(F362*G362,2)","v":0}]
[{"$nulls":7},{"$f":"ROUND(F363*G363,2)","v":0}]
[{"$nulls":7},{"$f":"SUM(H359:H363)","v":0}]
[{"$nulls":5},"ENCARGOS SOCIAIS",null,0.77249999999999996]
[{"$nulls":5},"TOTAL","(B)",{"$f":"ROUND(H364*(1+H365),2)","v":0}]
[]
["MATERIAIS",null,null,null,"QUANT.","UNID.","CUSTO","PARCIAL"]
[{"$nulls":6},"UNITÁRIO"]
[{"$nulls":7},{"$f":"ROUND(E370*G370,2)","v":0}]
[{"$nulls":7},0]
[{"$nulls":7},0]
[{"$nulls":7},0]
[{"$nulls":7},0]
[{"$nulls":7},0]
[{"$nulls":6},"(C)",{"$f":"SUM(H370:H375)","v":0}]
[]
[{"$nulls":5},"            (A)+(B)+(C) = (D)",null,{"$f":"H355+H366+H376","v":0}]
[]
["PRODUÇÃO DA EQUIPE",1,"(E)"]
[{"$nulls":4},"          CUSTO UNITÁRIO"]
[null,null,null,"          SEM TRANSPORTE (D)/(E) = (F)",null,null,null,{"$f":"H378/B380","v":0}]
[]
["TRANSPORTE",null,null,"DMT","QUANT.","UNID.","CUSTO","PARCIAL"]
[{"$nulls":6},"UNITÁRIO"]
[]
[]
[]
[{"$nulls":6},"(G)"]
[]
["CUSTO DIRETO",{"$nulls":5},"(F)+(G)",{"$f":"H382+H389","v":0}]
["BDI",{"$nulls":5},{"$f":"G326","v":0.23019999999999999},{"$f":"G392*H391","v":0}]
["PREÇO UNITÁRIO",{"$nulls":6},{"$f":"ROUND(H391+H392,2)","v":0}]

{"sheet":"poo","index":8,"n_rows":58,"n_cols":6,"rows_kept":58,"cut":false,"hidden":false,"merged":[[57,0,57,4],[6,0,6,5],[7,0,8,0],[7,1,8,1],[7,2,8,2],[7,3,8,3],[7,4,7,5]]}
[]
[]
[]
["OBRA: PROJETO JAÍBA"]
["LOCAL: MOCAMBINHO - MG"]
["DATA: JANEIRO 2012"]
["PLANILHA ORÇAMENTÁRIA"]
["ITEM","DESCRIÇÃO DOS SERVIÇOS ","UNID","QUANT","PREÇOS (R$)"]
[{"$nulls":4},"UNITÁRIO","TOTAL"]
[]
[1,"Engenharia de Automação"]
[]
["1.1","Desenvolvimento de Software","dia",15,{"$f":"'CPU-AUTOMAÇÃO'!H62","v":0},{"$f":"ROUND(D13*E13,2)","v":0}]
[]
["1.2","Calibração dos instrumentos","dia",20,{"$f":"'CPU-AUTOMAÇÃO'!H129","v":0},{"$f":"ROUND(D15*E15,2)","v":0}]
[]
["1.3","Comissionamento, testes e colocação em operação","dia",40,{"$f":"'CPU-AUTOMAÇÃO'!H195","v":0},{"$f":"ROUND(D17*E17,2)","v":0}]
[]
["1.4","Operação Assistida","dia",15,{"$f":"'CPU-AUTOMAÇÃO'!H261","v":0},{"$f":"ROUND(D19*E19,2)","v":0}]
[]
["1.5","Treinamento","dia",6,{"$f":"'CPU-AUTOMAÇÃO'!H327","v":0},{"$f":"ROUND(D21*E21,2)","v":0}]
[]
["1.6","Recuperação e Adaptação","dia",20,{"$f":"'CPU-AUTOMAÇÃO'!H393","v":0},{"$f":"ROUND(D23*E23,2)","v":0}]
[]
[2,"Fornecimento da Instrumentação"]
[]
["2.1","Medidor Eletromagnético de vazão","conj.",4,{"$f":"FORNECIMENTO!H62","v":0},{"$f":"ROUND(D27*E27,2)","v":0}]
[]
["2.2","Transmissor de pressão","conj.",4,{"$f":"FORNECIMENTO!H129","v":0},{"$f":"ROUND(D29*E29,2)","v":0}]
[]
["2.3","Relé microprocessado digital","conj.",8,{"$f":"FORNECIMENTO!H195","v":0},{"$f":"ROUND(D31*E31,2)","v":0}]
[]
["2.4","Transmissor de temperatura PT100","conj.",12,{"$f":"FORNECIMENTO!H261","v":0},{"$f":"ROUND(D33*E33,2)","v":0}]
[]
["2.5","Medidor de vibração","conj.",8,{"$f":"FORNECIMENTO!H327","v":0},{"$f":"ROUND(D35*E35,2)","v":0}]
[]
["2.6","Transmissor de nível","conj.",4,{"$f":"FORNECIMENTO!H393","v":0},{"$f":"ROUND(D37*E37,2)","v":0}]
[]
["2.7","Material de montagem","conj.",1,{"$f":"'DETA MATE'!F14","v":0},{"$f":"ROUND(D39*E39,2)","v":0}]
[]
[3,"Montagem da Instrumentação"]
[]
["3.1","Medidor Eletromagnético de vazão","conj.",4,{"$f":"'CPU-MONTAGEM'!H62","v":0},{"$f":"ROUND(D43*E43,2)","v":0}]
[]
["3.2","Transmissor de pressão","conj.",4,{"$f":"'CPU-MONTAGEM'!H129","v":0},{"$f":"ROUND(D45*E45,2)","v":0}]
[]
["3.3","Relé microprocessado digital","conj.",8,{"$f":"'CPU-MONTAGEM'!H195","v":0},{"$f":"ROUND(D47*E47,2)","v":0}]
[]
["3.4","Transmissor de temperatura PT100","conj.",12,{"$f":"'CPU-MONTAGEM'!H261","v":0},{"$f":"ROUND(D49*E49,2)","v":0}]
[]
["3.5","Medidor de vibração","conj.",8,{"$f":"'CPU-MONTAGEM'!H327","v":0},{"$f":"ROUND(D51*E51,2)","v":0}]
[]
["3.6","Transmissor de nível","conj.",4,{"$f":"'CPU-MONTAGEM'!H393","v":0},{"$f":"ROUND(D53*E53,2)","v":0}]
[]
[4,"Veículo"]
["4.1","Fornecimento de 01 veiculo utilitário com ar condicionado para apoio à fiscalização, incluindomdespesas com combustivel, óleo, manutenção, licenciamento, seguros e impostos","mês",4,{"$f":"'CPU-MONTAGEM'!H459","v":0},{"$f":"ROUND(D56*E56,2)","v":0}]
[]
["TOTAL GERAL",{"$nulls":4},{"$f":"SUBTOTAL(9,F12:F56)","v":0}]